[Event "Late-Titled-Tuesday-Blitz-September-12-2023"]
[Site "Chess.com"]
[Date "2023.09.12"]
[Round "1"]
[White "farzadbfd"]
[Black "Giantgoogachess"]
[Result "1-0"]
[WhiteElo "2694"]
[BlackElo "2371"]
[TimeControl "180+1"]
[EndTime "14:07:30 PDT"]
[Termination "farzadbfd won by resignation"]

1. d4 {[%clk 0:03:00.9]} 1... Nf6 {[%clk 0:02:49.6]} 2. Nf3 {[%clk 0:03:01.3]}
2... e6 {[%clk 0:02:48.5]} 3. c4 {[%clk 0:03:01.8]} 3... d5 {[%clk 0:02:48.4]}
4. Nc3 {[%clk 0:03:02.3]} 4... dxc4 {[%clk 0:02:47.9]} 5. e3 {[%clk 0:03:00.8]}
5... a6 {[%clk 0:02:46.6]} 6. Bxc4 {[%clk 0:03:00.6]} 6... b5 {[%clk 0:02:45.3]}
7. Be2 {[%clk 0:03:01.3]} 7... c5 {[%clk 0:02:45.1]} 8. O-O {[%clk 0:02:55.9]}
8... Bb7 {[%clk 0:02:45.3]} 9. a4 {[%clk 0:02:36.4]} 9... b4 {[%clk 0:02:38.9]}
10. Na2 {[%clk 0:02:33.8]} 10... Nbd7 {[%clk 0:02:26.2]} 11. Bd2 {[%clk
0:02:10.9]} 11... a5 {[%clk 0:02:21.5]} 12. Rc1 {[%clk 0:02:09]} 12... Rc8
{[%clk 0:02:21.1]} 13. Bb5 {[%clk 0:02:07.1]} 13... Qb6 {[%clk 0:02:19.6]} 14.
Ne5 {[%clk 0:02:03.2]} 14... Bd6 {[%clk 0:02:14.2]} 15. Nxd7 {[%clk 0:01:58.4]}
15... Nxd7 {[%clk 0:02:15.1]} 16. dxc5 {[%clk 0:01:56.9]} 16... Rxc5 {[%clk
0:02:10.7]} 17. Qg4 {[%clk 0:01:38.5]} 17... g6 {[%clk 0:01:52]} 18. Qd4 {[%clk
0:01:23.1]} 18... e5 {[%clk 0:01:51.2]} 19. Qg4 {[%clk 0:01:22.4]} 19... Bc6
{[%clk 0:01:47.2]} 20. Rxc5 {[%clk 0:01:20.3]} 20... Bxc5 {[%clk 0:01:41.9]} 21.
Bxc6 {[%clk 0:01:09.9]} 21... Qxc6 {[%clk 0:01:38.2]} 22. b3 {[%clk 0:00:55.1]}
22... O-O {[%clk 0:01:28.7]} 23. Nc1 {[%clk 0:00:55]} 23... Qd5 {[%clk
0:01:27.9]} 24. Rd1 {[%clk 0:00:53.6]} 24... Nf6 {[%clk 0:01:18.4]} 25. Qf3
{[%clk 0:00:50.1]} 25... Qxf3 {[%clk 0:01:16.4]} 26. gxf3 {[%clk 0:00:51]} 26...
Rd8 {[%clk 0:01:16.3]} 27. Kf1 {[%clk 0:00:51.8]} 27... e4 {[%clk 0:01:15.1]}
28. fxe4 {[%clk 0:00:41.5]} 28... Nxe4 {[%clk 0:01:16]} 29. Ke2 {[%clk 0:00:42]}
29... f5 {[%clk 0:00:47]} 30. Nd3 {[%clk 0:00:38.3]} 30... Bd6 {[%clk
0:00:46.2]} 31. h3 {[%clk 0:00:32.8]} 31... Rc8 {[%clk 0:00:43.8]} 32. Rc1
{[%clk 0:00:17.5]} 32... Rxc1 {[%clk 0:00:41.4]} 33. Nxc1 {[%clk 0:00:18.4]}
33... Kf7 {[%clk 0:00:40.5]} 34. f3 {[%clk 0:00:15.9]} 34... Nf6 {[%clk
0:00:36.5]} 35. Kd3 {[%clk 0:00:16]} 35... Ke6 {[%clk 0:00:35]} 36. Kc4 {[%clk
0:00:16.6]} 36... Nd7 {[%clk 0:00:35.7]} 37. Kb5 {[%clk 0:00:16.8]} 37... Ne5
{[%clk 0:00:36.3]} 38. Ne2 {[%clk 0:00:12]} 38... Nxf3 {[%clk 0:00:35.9]} 39.
Bc1 {[%clk 0:00:12.2]} 39... g5 {[%clk 0:00:31.3]} 40. Kxa5 {[%clk 0:00:12.1]}
40... g4 {[%clk 0:00:32]} 41. hxg4 {[%clk 0:00:12.7]} 41... fxg4 {[%clk
0:00:32.9]} 42. Kb6 {[%clk 0:00:13.2]} 42... g3 {[%clk 0:00:33.3]} 43. a5 {[%clk
0:00:13.5]} 43... Kd7 {[%clk 0:00:20.5]} 44. a6 {[%clk 0:00:13.8]} 44... Bb8
{[%clk 0:00:07.4]} 45. Kb7 {[%clk 0:00:14]} 1-0

[Event "Late-Titled-Tuesday-Blitz-September-12-2023"]
[Site "Chess.com"]
[Date "2023.09.12"]
[Round "1"]
[White "Abund"]
[Black "Roedor"]
[Result "1-0"]
[WhiteElo "2741"]
[BlackElo "2405"]
[TimeControl "180+1"]
[EndTime "14:07:35 PDT"]
[Termination "Abund won by resignation"]

1. e4 {[%clk 0:03:00.9]} 1... e5 {[%clk 0:02:58.8]} 2. Nf3 {[%clk 0:03:00.9]}
2... Nc6 {[%clk 0:02:58.5]} 3. Bb5 {[%clk 0:03:01.5]} 3... Nf6 {[%clk
0:02:58.3]} 4. d3 {[%clk 0:03:01.7]} 4... Bc5 {[%clk 0:02:57.6]} 5. Bxc6 {[%clk
0:03:02.1]} 5... dxc6 {[%clk 0:02:57.5]} 6. Nbd2 {[%clk 0:03:02.8]} 6... Bd6
{[%clk 0:02:55.6]} 7. O-O {[%clk 0:03:00.7]} 7... O-O {[%clk 0:02:55.6]} 8. Nc4
{[%clk 0:02:55]} 8... Nd7 {[%clk 0:02:54.8]} 9. Kh1 {[%clk 0:02:51]} 9... Re8
{[%clk 0:02:52.1]} 10. g3 {[%clk 0:02:33.8]} 10... Nf8 {[%clk 0:02:47.6]} 11.
Nh4 {[%clk 0:02:32.2]} 11... Be6 {[%clk 0:02:31.3]} 12. Ne3 {[%clk 0:02:30.5]}
12... g6 {[%clk 0:02:22.4]} 13. Qe1 {[%clk 0:02:06.3]} 13... Bh3 {[%clk
0:02:10.9]} 14. Rg1 {[%clk 0:02:04]} 14... Ne6 {[%clk 0:02:08.2]} 15. Nf3 {[%clk
0:01:39.4]} 15... a5 {[%clk 0:01:49.9]} 16. a4 {[%clk 0:01:38.8]} 16... Nd4
{[%clk 0:01:14.7]} 17. Nxd4 {[%clk 0:01:37.4]} 17... exd4 {[%clk 0:01:15.6]} 18.
Nc4 {[%clk 0:01:37.8]} 18... b6 {[%clk 0:00:55.7]} 19. g4 {[%clk 0:01:20.2]}
19... Qh4 {[%clk 0:00:17.9]} 20. Nxd6 {[%clk 0:00:48]} 20... cxd6 {[%clk
0:00:16.8]} 21. f3 {[%clk 0:00:47.9]} 21... Qxe1 {[%clk 0:00:16.2]} 22. Rxe1
{[%clk 0:00:48.8]} 22... f5 {[%clk 0:00:15.9]} 23. gxf5 {[%clk 0:00:46.9]} 23...
gxf5 {[%clk 0:00:02.7]} 24. Rg1+ {[%clk 0:00:47.2]} 24... Kf7 {[%clk 0:00:03]}
25. Rg3 {[%clk 0:00:40.8]} 25... Bf1 {[%clk 0:00:02.6]} 26. Bf4 {[%clk
0:00:38.6]} 26... Be2 {[%clk 0:00:02.7]} 27. Re1 {[%clk 0:00:34.6]} 27... fxe4
{[%clk 0:00:02.9]} 28. Rxe2 {[%clk 0:00:28.1]} 28... exd3 {[%clk 0:00:03.2]} 29.
Rxe8 {[%clk 0:00:25.9]} 29... Rxe8 {[%clk 0:00:02.5]} 30. cxd3 {[%clk
0:00:26.5]} 30... Re2 {[%clk 0:00:02.2]} 31. Rg2 {[%clk 0:00:23.8]} 31... Re1+
{[%clk 0:00:02.1]} 32. Rg1 {[%clk 0:00:24.3]} 32... Re2 {[%clk 0:00:03]} 33.
Bxd6 {[%clk 0:00:21.8]} 33... Rxb2 {[%clk 0:00:02.7]} 34. f4 {[%clk 0:00:20]}
34... Rd2 {[%clk 0:00:02.4]} 35. Rg3 {[%clk 0:00:19.6]} 35... Rd1+ {[%clk
0:00:02.3]} 36. Kg2 {[%clk 0:00:19.9]} 36... Rd2+ {[%clk 0:00:03.2]} 37. Kh3
{[%clk 0:00:18.1]} 37... b5 {[%clk 0:00:04.1]} 38. axb5 {[%clk 0:00:15.7]} 38...
cxb5 {[%clk 0:00:05]} 39. Be5 {[%clk 0:00:16.4]} 39... b4 {[%clk 0:00:05]} 40.
f5 {[%clk 0:00:16.6]} 40... a4 {[%clk 0:00:03.8]} 41. Rg7+ {[%clk 0:00:16.5]}
41... Kf8 {[%clk 0:00:04.4]} 42. f6 {[%clk 0:00:16.7]} 42... Re2 {[%clk
0:00:04.2]} 43. Bd6+ {[%clk 0:00:16.6]} 43... Ke8 {[%clk 0:00:04]} 44. f7+
{[%clk 0:00:17.3]} 1-0

[Event "Late-Titled-Tuesday-Blitz-September-12-2023"]
[Site "Chess.com"]
[Date "2023.09.12"]
[Round "1"]
[White "rdarruda"]
[Black "Jospem"]
[Result "0-1"]
[WhiteElo "2511"]
[BlackElo "3102"]
[TimeControl "180+1"]
[EndTime "14:07:37 PDT"]
[Termination "Jospem won by resignation"]

1. d4 {[%clk 0:02:59.9]} 1... Nf6 {[%clk 0:03:00]} 2. Nf3 {[%clk 0:02:59.1]}
2... e6 {[%clk 0:03:00.1]} 3. c4 {[%clk 0:02:58.3]} 3... Bb4+ {[%clk 0:03:00]}
4. Nbd2 {[%clk 0:02:58]} 4... O-O {[%clk 0:03:00]} 5. a3 {[%clk 0:02:58.1]} 5...
Be7 {[%clk 0:03:00.6]} 6. e4 {[%clk 0:02:57.2]} 6... d6 {[%clk 0:03:01.5]} 7.
Bd3 {[%clk 0:02:57.1]} 7... Nfd7 {[%clk 0:03:02.3]} 8. O-O {[%clk 0:02:55.5]}
8... e5 {[%clk 0:03:03]} 9. dxe5 {[%clk 0:02:47.4]} 9... dxe5 {[%clk 0:03:02.7]}
10. b4 {[%clk 0:02:47.9]} 10... a5 {[%clk 0:03:03]} 11. Rb1 {[%clk 0:02:39.8]}
11... axb4 {[%clk 0:02:57.3]} 12. axb4 {[%clk 0:02:40.7]} 12... Nc6 {[%clk
0:02:57.8]} 13. b5 {[%clk 0:02:24.3]} 13... Na5 {[%clk 0:02:57.7]} 14. Bb2
{[%clk 0:02:18.1]} 14... f6 {[%clk 0:02:51.3]} 15. Qc2 {[%clk 0:02:12]} 15...
Nc5 {[%clk 0:02:50.8]} 16. Be2 {[%clk 0:02:11.9]} 16... Be6 {[%clk 0:02:47.3]}
17. Rfd1 {[%clk 0:02:11.2]} 17... Qe8 {[%clk 0:02:48]} 18. Nf1 {[%clk
0:02:10.1]} 18... Qg6 {[%clk 0:02:42]} 19. Ng3 {[%clk 0:01:57.1]} 19... Qf7
{[%clk 0:02:42.5]} 20. Nd2 {[%clk 0:01:51.1]} 20... Rfd8 {[%clk 0:02:41.4]} 21.
Nf5 {[%clk 0:01:50.9]} 21... Bf8 {[%clk 0:02:40.6]} 22. Ne3 {[%clk 0:01:50.2]}
22... b6 {[%clk 0:02:29.6]} 23. Bc3 {[%clk 0:01:39.1]} 23... Nab7 {[%clk
0:02:26.7]} 24. f3 {[%clk 0:01:30.2]} 24... Nd6 {[%clk 0:02:27.2]} 25. Bb4
{[%clk 0:01:28.1]} 25... Ndb7 {[%clk 0:02:24.6]} 26. Ra1 {[%clk 0:01:21.6]}
26... Rxa1 {[%clk 0:02:22.1]} 27. Rxa1 {[%clk 0:01:22.5]} 27... Nd7 {[%clk
0:02:02.9]} 28. Bxf8 {[%clk 0:01:19.2]} 28... Qxf8 {[%clk 0:02:03.8]} 29. Qc3
{[%clk 0:01:13.4]} 29... Ndc5 {[%clk 0:02:00.9]} 30. Nd5 {[%clk 0:01:11.7]}
30... Qd6 {[%clk 0:02:00.2]} 31. h3 {[%clk 0:01:08.2]} 31... h5 {[%clk
0:02:00.1]} 32. Nf1 {[%clk 0:01:07.7]} 32... Bxd5 {[%clk 0:01:45.6]} 33. cxd5
{[%clk 0:01:05.7]} 33... g6 {[%clk 0:01:46.4]} 34. Ne3 {[%clk 0:01:05]} 34...
Kg7 {[%clk 0:01:46.9]} 35. Ra7 {[%clk 0:01:04.5]} 35... Qe7 {[%clk 0:01:42.4]}
36. Nc4 {[%clk 0:01:00.4]} 36... Rd7 {[%clk 0:01:39.5]} 37. Kh2 {[%clk
0:00:55.8]} 37... Nd6 {[%clk 0:01:39.7]} 38. Nxd6 {[%clk 0:00:50.1]} 38... Qxd6
{[%clk 0:01:40.6]} 39. Ra8 {[%clk 0:00:47.3]} 39... Re7 {[%clk 0:01:38.2]} 40.
Bd3 {[%clk 0:00:43.3]} 40... Kh7 {[%clk 0:01:27.6]} 41. Bc2 {[%clk 0:00:43.2]}
41... Rf7 {[%clk 0:01:24.8]} 42. Kh1 {[%clk 0:00:42.7]} 42... Kg7 {[%clk
0:01:23]} 43. Qa1 {[%clk 0:00:41]} 43... Nb7 {[%clk 0:01:18.3]} 44. Qa7 {[%clk
0:00:38.2]} 44... Nc5 {[%clk 0:01:07.6]} 45. Qb8 {[%clk 0:00:37]} 45... Rf8
{[%clk 0:01:05]} 46. Qa7 {[%clk 0:00:36.1]} 46... Rxa8 {[%clk 0:01:04.6]} 47.
Qxa8 {[%clk 0:00:37]} 47... Qe7 {[%clk 0:01:01.9]} 48. Qc8 {[%clk 0:00:36.6]}
48... h4 {[%clk 0:00:55.9]} 49. Kh2 {[%clk 0:00:36.6]} 49... g5 {[%clk
0:00:56.1]} 50. Kh1 {[%clk 0:00:36.5]} 50... Qd7 {[%clk 0:00:56.6]} 51. Qb8
{[%clk 0:00:35.8]} 51... Qd6 {[%clk 0:00:56.2]} 52. Qe8 {[%clk 0:00:35.1]} 52...
Nd7 {[%clk 0:00:55.5]} 53. Qd8 {[%clk 0:00:33.7]} 53... Kf7 {[%clk 0:00:51.3]}
54. Bd3 {[%clk 0:00:33]} 54... Nc5 {[%clk 0:00:33.4]} 55. Qxd6 {[%clk
0:00:31.8]} 55... cxd6 {[%clk 0:00:34.3]} 56. Bc4 {[%clk 0:00:31.2]} 56... f5
{[%clk 0:00:33.9]} 57. exf5 {[%clk 0:00:28.7]} 57... Kf6 {[%clk 0:00:34.3]} 58.
Kg1 {[%clk 0:00:29.3]} 58... Kxf5 {[%clk 0:00:34.7]} 59. Kf2 {[%clk 0:00:29.7]}
59... Kf4 {[%clk 0:00:35.4]} 60. Be2 {[%clk 0:00:27.6]} 60... e4 {[%clk
0:00:34.4]} 61. fxe4 {[%clk 0:00:26.5]} 61... Nxe4+ {[%clk 0:00:35.3]} 62. Ke1
{[%clk 0:00:26.7]} 62... Nc3 {[%clk 0:00:35.7]} 63. Bc4 {[%clk 0:00:25.9]} 63...
Ke3 {[%clk 0:00:36.1]} 64. Kf1 {[%clk 0:00:24.8]} 64... Kd4 {[%clk 0:00:36.3]}
65. Bb3 {[%clk 0:00:24.4]} 65... Nxb5 {[%clk 0:00:36.1]} 66. Kf2 {[%clk
0:00:24.8]} 66... Ke5 {[%clk 0:00:36.6]} 67. Kf3 {[%clk 0:00:25]} 67... Nd4+
{[%clk 0:00:37.3]} 0-1

[Event "Late-Titled-Tuesday-Blitz-September-12-2023"]
[Site "Chess.com"]
[Date "2023.09.12"]
[Round "1"]
[White "DefiantChair"]
[Black "Jenia84"]
[Result "1-0"]
[WhiteElo "2688"]
[BlackElo "2364"]
[TimeControl "180+1"]
[EndTime "14:07:37 PDT"]
[Termination "DefiantChair won on time"]

1. e4 {[%clk 0:03:00.9]} 1... c5 {[%clk 0:02:56.8]} 2. Nf3 {[%clk 0:03:00.8]}
2... d6 {[%clk 0:02:57.1]} 3. d4 {[%clk 0:03:00]} 3... cxd4 {[%clk 0:02:57.5]}
4. Nxd4 {[%clk 0:03:00.9]} 4... Nf6 {[%clk 0:02:57.8]} 5. Nc3 {[%clk 0:03:01.6]}
5... a6 {[%clk 0:02:54.5]} 6. Bg5 {[%clk 0:03:01]} 6... e6 {[%clk 0:02:53.9]} 7.
f4 {[%clk 0:03:00]} 7... Nbd7 {[%clk 0:02:53.6]} 8. Qf3 {[%clk 0:02:57.2]} 8...
Qc7 {[%clk 0:02:49.5]} 9. O-O-O {[%clk 0:02:56.6]} 9... Be7 {[%clk 0:02:47.4]}
10. g4 {[%clk 0:02:53.8]} 10... h6 {[%clk 0:02:43.3]} 11. Bxf6 {[%clk
0:02:52.1]} 11... Bxf6 {[%clk 0:02:40.6]} 12. h4 {[%clk 0:02:52.1]} 12... b5
{[%clk 0:02:30.9]} 13. g5 {[%clk 0:02:07.3]} 13... Bxd4 {[%clk 0:02:14]} 14.
Rxd4 {[%clk 0:02:05.1]} 14... Bb7 {[%clk 0:02:13.7]} 15. Bh3 {[%clk 0:02:02.4]}
15... hxg5 {[%clk 0:02:03.6]} 16. hxg5 {[%clk 0:02:01.5]} 16... g6 {[%clk
0:01:51.5]} 17. Rhd1 {[%clk 0:01:59.4]} 17... O-O-O {[%clk 0:01:38.8]} 18. Rxd6
{[%clk 0:01:55.1]} 18... Nc5 {[%clk 0:01:34.1]} 19. Rxd8+ {[%clk 0:01:49.6]}
19... Rxd8 {[%clk 0:01:33.9]} 20. Rxd8+ {[%clk 0:01:48]} 20... Qxd8 {[%clk
0:01:33.7]} 21. a3 {[%clk 0:01:47.4]} 21... Qd4 {[%clk 0:01:28.4]} 22. Bg2
{[%clk 0:01:35.6]} 22... Qg1+ {[%clk 0:01:21]} 23. Kd2 {[%clk 0:01:35.5]} 23...
a5 {[%clk 0:01:07.7]} 24. Ne2 {[%clk 0:01:24.1]} 24... Qh2 {[%clk 0:00:33.3]}
25. Qc3 {[%clk 0:01:06.8]} 25... Qxg2 {[%clk 0:00:23.9]} 26. Qxc5+ {[%clk
0:01:06.6]} 26... Kb8 {[%clk 0:00:23.4]} 27. Qxb5 {[%clk 0:00:49.7]} 27... Qxe4
{[%clk 0:00:22.4]} 28. Qxa5 {[%clk 0:00:49.7]} 28... Qg2 {[%clk 0:00:19]} 29.
Qd8+ {[%clk 0:00:48.5]} 29... Ka7 {[%clk 0:00:18.6]} 30. Qd4+ {[%clk 0:00:49.4]}
30... Kb8 {[%clk 0:00:18.5]} 31. a4 {[%clk 0:00:49.5]} 31... Bf3 {[%clk
0:00:17.2]} 32. Qb6+ {[%clk 0:00:46.1]} 32... Kc8 {[%clk 0:00:16.2]} 33. Qc5+
{[%clk 0:00:46.3]} 33... Kd7 {[%clk 0:00:15.6]} 34. Qb5+ {[%clk 0:00:44.7]}
34... Ke7 {[%clk 0:00:15.3]} 35. a5 {[%clk 0:00:44]} 35... Qf2 {[%clk
0:00:12.9]} 36. a6 {[%clk 0:00:40.1]} 36... Bxe2 {[%clk 0:00:12.3]} 37. Qxe2
{[%clk 0:00:41]} 37... Qd4+ {[%clk 0:00:12.5]} 38. Qd3 {[%clk 0:00:40]} 38...
Qxf4+ {[%clk 0:00:12.4]} 39. Kc3 {[%clk 0:00:40.3]} 39... Qe5+ {[%clk
0:00:10.4]} 40. Kb4 {[%clk 0:00:35.4]} 40... Qb8+ {[%clk 0:00:06]} 41. Ka5
{[%clk 0:00:31.9]} 41... Qc7+ {[%clk 0:00:05.7]} 42. Ka4 {[%clk 0:00:31.6]}
42... Qc6+ {[%clk 0:00:04.5]} 43. Kb4 {[%clk 0:00:27]} 43... Qb6+ {[%clk
0:00:03.7]} 44. Qb5 {[%clk 0:00:26]} 44... Qd4+ {[%clk 0:00:03.7]} 45. Kb3
{[%clk 0:00:26]} 45... Qe3+ {[%clk 0:00:02.7]} 46. c3 {[%clk 0:00:26]} 1-0

[Event "Late-Titled-Tuesday-Blitz-September-12-2023"]
[Site "Chess.com"]
[Date "2023.09.12"]
[Round "1"]
[White "zajka-molotok"]
[Black "EnvigadoCity"]
[Result "1-0"]
[WhiteElo "2515"]
[BlackElo "1941"]
[TimeControl "180+1"]
[EndTime "14:07:39 PDT"]
[Termination "zajka-molotok won on time"]

1. e4 {[%clk 0:02:59.4]} 1... e5 {[%clk 0:02:59.4]} 2. Nf3 {[%clk 0:02:59.1]}
2... Nf6 {[%clk 0:03:00.1]} 3. Nc3 {[%clk 0:02:57.9]} 3... Nc6 {[%clk 0:02:59]}
4. Bb5 {[%clk 0:02:57.3]} 4... Bb4 {[%clk 0:02:55.7]} 5. O-O {[%clk 0:02:52.8]}
5... Bxc3 {[%clk 0:02:54.1]} 6. bxc3 {[%clk 0:02:33.2]} 6... d6 {[%clk
0:02:49.6]} 7. d4 {[%clk 0:02:22]} 7... Qe7 {[%clk 0:02:44]} 8. Re1 {[%clk
0:02:16.1]} 8... O-O {[%clk 0:02:39.6]} 9. h3 {[%clk 0:02:06.5]} 9... Bd7 {[%clk
0:02:32.3]} 10. Bd3 {[%clk 0:01:59.4]} 10... b6 {[%clk 0:02:22.2]} 11. Ba3
{[%clk 0:01:57.1]} 11... Rfe8 {[%clk 0:01:55.7]} 12. Qd2 {[%clk 0:01:50.2]}
12... Nh5 {[%clk 0:01:40.6]} 13. Bf1 {[%clk 0:01:39.6]} 13... Nf4 {[%clk
0:01:38.2]} 14. Kh2 {[%clk 0:01:39]} 14... Qf6 {[%clk 0:01:36.9]} 15. Re3 {[%clk
0:01:19.8]} 15... Qh6 {[%clk 0:01:29.4]} 16. Rae1 {[%clk 0:01:07.3]} 16... Re6
{[%clk 0:01:04.6]} 17. Bc1 {[%clk 0:01:04.5]} 17... Rg6 {[%clk 0:01:03.7]} 18.
dxe5 {[%clk 0:00:53.5]} 18... Nxg2 {[%clk 0:00:31]} 19. Bxg2 {[%clk 0:00:47.8]}
19... Rxg2+ {[%clk 0:00:30.1]} 20. Kxg2 {[%clk 0:00:44.1]} 20... Bxh3+ {[%clk
0:00:29.7]} 21. Kg3 {[%clk 0:00:31.4]} 21... Qh5 {[%clk 0:00:20.1]} 22. Rg1
{[%clk 0:00:17.1]} 22... Bg4 {[%clk 0:00:17.4]} 23. Nh4 {[%clk 0:00:08.3]} 23...
Nxe5 {[%clk 0:00:17.1]} 24. f4 {[%clk 0:00:06.4]} 24... g5 {[%clk 0:00:17]} 25.
fxg5 {[%clk 0:00:03.9]} 25... Ng6 {[%clk 0:00:16]} 26. Nxg6 {[%clk 0:00:03.3]}
26... Qh3+ {[%clk 0:00:16.6]} 27. Kf2 {[%clk 0:00:03.5]} 27... Qh2+ {[%clk
0:00:16.7]} 28. Kf1 {[%clk 0:00:02.7]} 28... Bh3+ {[%clk 0:00:13.5]} 29. Rxh3
{[%clk 0:00:02.3]} 29... Qxh3+ {[%clk 0:00:13.3]} 30. Qg2 {[%clk 0:00:02.4]}
30... Qxg2+ {[%clk 0:00:13.4]} 31. Rxg2 {[%clk 0:00:02.5]} 31... fxg6 {[%clk
0:00:14.3]} 32. Rf2 {[%clk 0:00:02.9]} 32... Rf8 {[%clk 0:00:15.1]} 33. Be3
{[%clk 0:00:03.1]} 33... Re8 {[%clk 0:00:14.8]} 34. Bd4 {[%clk 0:00:03.2]} 34...
Re6 {[%clk 0:00:14.9]} 35. Re2 {[%clk 0:00:03.8]} 35... Re7 {[%clk 0:00:15.3]}
36. Re3 {[%clk 0:00:04.3]} 36... Rf7+ {[%clk 0:00:16.2]} 37. Ke2 {[%clk
0:00:04.1]} 37... Re7 {[%clk 0:00:16.2]} 38. e5 {[%clk 0:00:04.3]} 38... d5
{[%clk 0:00:14.8]} 39. e6 {[%clk 0:00:04.6]} 39... c5 {[%clk 0:00:15]} 40. Bf6
{[%clk 0:00:05.2]} 40... Re8 {[%clk 0:00:14.5]} 41. e7 {[%clk 0:00:06.1]} 41...
h5 {[%clk 0:00:15]} 42. Re5 {[%clk 0:00:06.3]} 42... Kf7 {[%clk 0:00:13.6]} 43.
Rxd5 {[%clk 0:00:06.5]} 43... Ke6 {[%clk 0:00:14.5]} 44. Rd8 {[%clk 0:00:06.7]}
1-0

[Event "Late-Titled-Tuesday-Blitz-September-12-2023"]
[Site "Chess.com"]
[Date "2023.09.12"]
[Round "1"]
[White "Valio_M1948"]
[Black "MathiasCasalaspro"]
[Result "1-0"]
[WhiteElo "2554"]
[BlackElo "2254"]
[TimeControl "180+1"]
[EndTime "14:07:42 PDT"]
[Termination "Valio_M1948 won by checkmate"]

1. d4 {[%clk 0:03:00.9]} 1... Nf6 {[%clk 0:02:59.7]} 2. Bg5 {[%clk 0:03:01.4]}
2... g6 {[%clk 0:02:58.7]} 3. Bxf6 {[%clk 0:03:01.5]} 3... exf6 {[%clk
0:02:59.6]} 4. c4 {[%clk 0:03:02]} 4... Bg7 {[%clk 0:02:55.9]} 5. Nc3 {[%clk
0:03:02.4]} 5... O-O {[%clk 0:02:56.1]} 6. e3 {[%clk 0:03:03]} 6... f5 {[%clk
0:02:55.1]} 7. g3 {[%clk 0:03:03.3]} 7... c6 {[%clk 0:02:52]} 8. Nge2 {[%clk
0:03:03.3]} 8... Re8 {[%clk 0:02:47.2]} 9. Bg2 {[%clk 0:03:03.2]} 9... Na6
{[%clk 0:02:46.6]} 10. O-O {[%clk 0:03:02.1]} 10... Nc7 {[%clk 0:02:45.6]} 11.
b4 {[%clk 0:02:58.5]} 11... d5 {[%clk 0:02:38]} 12. cxd5 {[%clk 0:02:55.3]}
12... Nxd5 {[%clk 0:02:32.6]} 13. Nxd5 {[%clk 0:02:54.8]} 13... cxd5 {[%clk
0:02:33.5]} 14. Qb3 {[%clk 0:02:55.2]} 14... Be6 {[%clk 0:02:33.5]} 15. Nf4
{[%clk 0:02:54.5]} 15... Rc8 {[%clk 0:02:05.5]} 16. Bxd5 {[%clk 0:02:52.7]}
16... Bxd5 {[%clk 0:02:04.6]} 17. Nxd5 {[%clk 0:02:51.1]} 17... Qd6 {[%clk
0:01:54.3]} 18. Rac1 {[%clk 0:02:48.2]} 18... Bf8 {[%clk 0:01:44.9]} 19. a3
{[%clk 0:02:33.2]} 19... Red8 {[%clk 0:01:28.9]} 20. Nf4 {[%clk 0:02:26.3]}
20... g5 {[%clk 0:01:26.3]} 21. Nd3 {[%clk 0:02:23.4]} 21... Bg7 {[%clk
0:01:22.5]} 22. Nc5 {[%clk 0:02:22.8]} 22... Rc7 {[%clk 0:01:16.1]} 23. Nd3
{[%clk 0:02:13]} 23... Rdc8 {[%clk 0:01:11]} 24. Rc5 {[%clk 0:02:12.4]} 24...
Qg6 {[%clk 0:01:04.1]} 25. Rfc1 {[%clk 0:02:08.4]} 25... Rxc5 {[%clk 0:01:04.3]}
26. Rxc5 {[%clk 0:02:07.9]} 26... Re8 {[%clk 0:00:52.1]} 27. Qa4 {[%clk
0:01:34.7]} 27... Rf8 {[%clk 0:00:44]} 28. Qb5 {[%clk 0:01:28]} 28... a6 {[%clk
0:00:42.4]} 29. Qxb7 {[%clk 0:01:27.2]} 29... f4 {[%clk 0:00:42.4]} 30. e4
{[%clk 0:00:54.9]} 30... Bxd4 {[%clk 0:00:40.7]} 31. Rf5 {[%clk 0:00:53.3]}
31... fxg3 {[%clk 0:00:21]} 32. hxg3 {[%clk 0:00:52.3]} 32... h6 {[%clk
0:00:15.3]} 33. Qd5 {[%clk 0:00:49.5]} 33... Ba7 {[%clk 0:00:11.4]} 34. Kg2
{[%clk 0:00:49.6]} 34... Bb6 {[%clk 0:00:06.2]} 35. Ne5 {[%clk 0:00:49.7]} 35...
Qg7 {[%clk 0:00:04.8]} 36. Nd7 {[%clk 0:00:49.4]} 36... Rd8 {[%clk 0:00:04.7]}
37. Nf6+ {[%clk 0:00:47.6]} 37... Kh8 {[%clk 0:00:03.6]} 38. Qc6 {[%clk
0:00:45.1]} 38... Bd4 {[%clk 0:00:03.8]} 39. Nd5 {[%clk 0:00:38.5]} 39... Qf8
{[%clk 0:00:03.1]} 40. Qxa6 {[%clk 0:00:36.7]} 40... Bg7 {[%clk 0:00:03.1]} 41.
Qc6 {[%clk 0:00:35.7]} 41... Re8 {[%clk 0:00:02.2]} 42. Nc7 {[%clk 0:00:34.6]}
42... Rc8 {[%clk 0:00:01.6]} 43. Qd7 {[%clk 0:00:35.2]} 43... Rd8 {[%clk
0:00:01.8]} 44. Qxf7 {[%clk 0:00:35]} 44... Qxf7 {[%clk 0:00:02.3]} 45. Rxf7
{[%clk 0:00:35.9]} 45... Rd2 {[%clk 0:00:02.8]} 46. Ne6 {[%clk 0:00:35.5]} 46...
Ra2 {[%clk 0:00:03.1]} 47. Rxg7 {[%clk 0:00:35]} 47... Rxa3 {[%clk 0:00:04]} 48.
Rg6 {[%clk 0:00:35.1]} 48... Kh7 {[%clk 0:00:03.8]} 49. Nf8+ {[%clk 0:00:34.2]}
49... Kh8 {[%clk 0:00:03.9]} 50. Rxh6+ {[%clk 0:00:34]} 50... Kg7 {[%clk
0:00:04.8]} 51. Rg6+ {[%clk 0:00:34.8]} 51... Kxf8 {[%clk 0:00:05.3]} 52. Rxg5
{[%clk 0:00:35.5]} 52... Rb3 {[%clk 0:00:05.6]} 53. Rb5 {[%clk 0:00:36.3]} 53...
Kf7 {[%clk 0:00:05.8]} 54. f4 {[%clk 0:00:36.3]} 54... Kf6 {[%clk 0:00:06.7]}
55. Kh3 {[%clk 0:00:36.7]} 55... Kg6 {[%clk 0:00:06.7]} 56. Kg4 {[%clk
0:00:37.2]} 56... Kf6 {[%clk 0:00:07.2]} 57. Rb6+ {[%clk 0:00:38.1]} 57... Kf7
{[%clk 0:00:07.8]} 58. e5 {[%clk 0:00:38.8]} 58... Kg7 {[%clk 0:00:07.8]} 59. f5
{[%clk 0:00:39.4]} 59... Kf7 {[%clk 0:00:08.2]} 60. Rb7+ {[%clk 0:00:40.1]}
60... Kf8 {[%clk 0:00:08.4]} 61. Kg5 {[%clk 0:00:41]} 61... Rxg3+ {[%clk
0:00:08.4]} 62. Kf6 {[%clk 0:00:41.8]} 62... Rh3 {[%clk 0:00:09.1]} 63. Rb8#
{[%clk 0:00:42.2]} 1-0